fUSD/lending_fUSD_20250209
["ID","MTS","AMOUNT","RATE_DAILY","PERIOD"]
[352380624,1739068278498,-390.050544,0.00010263,2]
[352380625,1739068278510,-109.949456,0.00010263,2]
[352380626,1739068278520,-620.531423,0.00010273,2]
[352380627,1739068278532,-505.14,0.00010401,2]
[352380628,1739068278543,-643.28,0.0001041,2]
[352380629,1739068278552,-505.14,0.00010538,2]
[352380630,1739068278562,-643.28,0.00010547,2]
[352380631,1739068278571,-500.0,0.00010674,2]
[352380632,1739068278581,-643.28,0.00010684,2]
[352380633,1739068278591,-500.0,0.00010811,2]
[352380634,1739068278600,-643.28,0.00010821,2]
[352380635,1739068278610,-500.0,0.00010948,2]
[352380636,1739068278620,-500.0,0.00010958,2]
[352380637,1739068278630,-643.28,0.00010958,2]
[352380638,1739068278640,-500.0,0.00011085,2]
[352380639,1739068278650,-128.40829725,0.00011086,2]
[352380640,1739068278659,-594.33,0.00011086,2]
[352380641,1739068278670,-713.04,0.00011086,2]
[352380642,1739068278680,-539.33666315,0.00011086,2]
[352380643,1739068278690,-1895.12,0.00011086,2]
[352380644,1739068278700,-525.89,0.00011086,2]
[352380645,1739068278710,-500.0,0.00011086,2]
[352380646,1739068278721,-2888.1,0.00011086,2]
[352380647,1739068278732,-1057.6,0.00011086,2]
[352380648,1739068278743,-1387.64,0.00011086,2]
[352380649,1739068278753,-500.0,0.00011086,2]
[352380650,1739068278763,-514.0,0.00011086,2]
[352380651,1739068278774,-1501.18,0.00011086,2]
[352380652,1739068278784,-1053.58,0.00011086,2]
[352380653,1739068278794,-514.54,0.00011086,2]
[352380654,1739068278804,-768.56,0.00011086,2]
[352380655,1739068278814,-535.07,0.00011086,2]
[352380656,1739068278824,-680.69,0.00011086,2]
[352380657,1739068278834,-1231.64,0.00011086,2]
[352380658,1739068278844,-2192.35,0.00011086,2]
[352380659,1739068278855,-586.73,0.00011086,2]
[352380660,1739068278865,-500.0,0.00011086,2]
[352380661,1739068278875,-1046.17,0.00011086,2]
[352380662,1739068278884,-500.0,0.00011086,2]
[352380663,1739068278895,-1813.69,0.00011086,2]
[352380664,1739068278904,-1640.37,0.00011086,2]
[352380665,1739068278914,-669.76,0.00011086,2]
[352380666,1739068278924,-500.0,0.00011086,2]
[352380667,1739068278934,-912.52,0.00011086,2]
[352380668,1739068278945,-1735.55,0.00011086,2]
[352380669,1739068278955,-379.93991329,0.00011086,2]
[352380670,1739068278964,-500.0,0.00011086,2]
[352380671,1739068278973,-500.0,0.00011086,2]
[352380672,1739068278983,-1516.41,0.00011086,2]
[352380673,1739068278992,-1011.36,0.00011086,2]
[352380674,1739068279002,-500.0,0.00011086,2]
[352380675,1739068279012,-1292.34,0.00011086,2]
[352380676,1739068279021,-500.0,0.00011086,2]
[352380677,1739068279033,-1086.04,0.00011086,2]
[352380678,1739068279044,-500.0,0.00011086,2]
[352380679,1739068279054,-338.76770281,0.00011086,2]
[352380680,1739068279072,-449.55229719,0.00011086,2]
[352380681,1739068279081,-1813.88,0.00011086,2]
[352380682,1739068279091,-602.06770281,0.00011086,2]
[352380683,1739068279112,-505.14,0.00010675,2]
[352380684,1739068279122,-1444.808,0.00011086,2]
[352380685,1739068279154,-453.04661786,0.000104,2]
[352380686,1739068279789,-261.97728666,9.999e-05,2]
[352380687,1739068279800,-1226.58271334,9.999e-05,2]
[352380688,1739068279810,-1488.56,0.00010136,2]
[352380689,1739068279819,-436.85728666,0.00010273,2]
[352380690,1739068279830,-271.92848716,0.00010273,2]
[352380691,1739068279858,-779.77422618,0.00010273,2]
[352380692,1739068279868,-54.25398647,0.000104,2]
[352380693,1739068279877,-505.14,0.00010812,2]
[352380694,1739068279887,-505.14,0.00010949,2]
[352380695,1739068279897,-136.66429719,0.00011086,2]
[352380696,1739068279907,-498.03586568,0.00011086,2]
[352380697,1739068279916,-798.61,0.00011086,2]
[352380698,1739068279927,-1408.01,0.00011086,2]
[352380699,1739068279938,-678.49,0.00011086,2]
[352380700,1739068279948,-1409.7,0.00011086,2]
[352380701,1739068279957,-967.29,0.00011086,2]
[352380702,1739068279967,-500.0,0.00011086,2]
[352380703,1739068279977,-645.64,0.00011086,2]
[352380704,1739068279986,-695.06,0.00011086,2]
[352380705,1739068279996,-951.2,0.00011086,2]
[352380706,1739068280007,-1002.71,0.00011086,2]
[352380707,1739068280020,-1894.78,0.00011086,2]
[352380708,1739068280031,-2146.73,0.00011086,2]
[352380709,1739068280041,-1508.57,0.00011086,2]
[352380710,1739068280050,-3646.49,0.00011086,2]
[352380711,1739068280060,-735.05,0.00011086,2]
[352380712,1739068280070,-2412.9,0.00011086,2]
[352380713,1739068280080,-500.0,0.00011086,2]
[352380714,1739068280090,-749.05,0.00011086,2]
[352380715,1739068280100,-1730.37,0.00011086,2]
[352380716,1739068280110,-984.54,0.00011086,2]
[352380717,1739068280119,-500.0,0.00011086,2]
[352380718,1739068280131,-2918.7,0.00011086,2]
[352380719,1739068280141,-500.0,0.00011086,2]
[352380720,1739068280153,-988.0,0.00011086,2]
[352380721,1739068280165,-967.87,0.00011086,2]
[352380722,1739068280175,-500.0,0.00011086,2]
[352380723,1739068280184,-500.0,0.00011086,2]
[352380724,1739068280194,-327.06707705,0.00011086,2]
[352380725,1739068280204,-509.19,0.00011086,2]
[352380726,1739068280216,-500.0,0.00011086,2]
[352380727,1739068280226,-638.52,0.00011086,2]
[352380728,1739068280236,-1138.87,0.00011086,2]
[352380729,1739068280246,-570.46,0.00011086,2]
[352380730,1739068280255,-1633.4,0.00011086,2]
[352380731,1739068280264,-803.83,0.00011086,2]
[352380732,1739068280274,-509.41863824,0.00011086,2]
[352380733,1739068280283,-500.0,0.00011086,2]
[352380734,1739068280292,-212.48754118,0.00011086,2]
[352380735,1739068280303,-500.0,0.00011086,2]
[352380736,1739068280313,-1288.74,0.00011086,2]
[352380737,1739068280322,-1711.72,0.00011086,2]
[352380738,1739068280332,-1257.42,0.00011086,2]
[352380739,1739068280341,-1369.94,0.00011086,2]
[352380740,1739068280351,-633.01,0.00011086,2]
[352380741,1739068280360,-1214.08,0.00011086,2]
[352380742,1739068280370,-630.24,0.00011086,2]
[352380743,1739068280379,-548.7,0.00011086,2]
[352380744,1739068280390,-1405.68,0.00011086,2]
[352380745,1739068280399,-500.0,0.00011086,2]
[352380746,1739068280408,-1452.51,0.00011086,2]
[352380747,1739068280419,-1705.78,0.00011086,2]
[352380748,1739068280428,-500.0,0.00011086,2]
[352380749,1739068280438,-621.33,0.00011086,2]
[352380750,1739068280447,-1951.52,0.00011086,2]
[352380751,1739068280458,-603.4,0.00011086,2]
[352380752,1739068280468,-500.0,0.00011086,2]
[352380753,1739068280477,-2275.81,0.00011086,2]
[352380754,1739068280487,-1151.28,0.00011086,2]
[352380755,1739068280497,-500.0,0.00011086,2]
[352380756,1739068280508,-5115.12,0.00011086,2]
[352380757,1739068280519,-361.91793735,0.00011086,2]
[352380758,1739068280530,-505.14,0.00011086,2]
[352380759,1739068280540,-500.0,0.00011087,2]
[352380760,1739068280549,-500.0,0.00011087,2]
[352380761,1739068280558,-500.0,0.00011087,2]
[352380762,1739068280569,-270.41726246,0.00011087,2]
[352380763,1739068280579,-500.0,0.00011087,2]
[352380764,1739068280591,-500.0,0.00011087,2]
[352380765,1739068280601,-500.0,0.00011087,2]
[352380766,1739068280612,-500.0,0.00011087,2]
[352380767,1739068280622,-500.0,0.00011087,2]
[352380768,1739068280632,-500.0,0.00011087,2]
[352380769,1739068280641,-500.0,0.00011087,2]
[352380770,1739068280651,-504.79363934,0.00011087,2]
[352380771,1739068280661,-521.94890409,0.00011087,2]
[352380772,1739068280670,-500.0,0.00011087,2]
[352380773,1739068280680,-203.72200959,0.00011089,2]
[352380774,1739068280690,-785.18,0.00011095,2]
[352380775,1739068280700,-644.68,0.00011095,2]
[352380776,1739068280709,-646.35,0.00011095,2]
[352380777,1739068280719,-500.0,0.00011095,2]
[352380778,1739068280728,-1506.13,0.00011095,2]
[352380779,1739068280738,-1265.04,0.00011095,2]
[352380780,1739068280749,-1598.62,0.00011095,2]
[352380781,1739068280760,-1741.99,0.00011095,2]
[352380782,1739068280770,-500.0,0.00011095,2]
[352380783,1739068280780,-1264.68,0.00011095,2]
[352380784,1739068280789,-1332.83,0.00011095,2]
[352380785,1739068280800,-1408.8,0.00011095,2]
[352380786,1739068280814,-2329.97,0.00011095,2]
[352380787,1739068280828,-1536.78,0.00011095,2]
[352380788,1739068280838,-704.79,0.00011095,2]
[352380789,1739068280848,-2199.8,0.00011095,2]
[352380790,1739068280862,-846.8,0.00011095,2]
[352380791,1739068280872,-500.0,0.00011095,2]
[352380792,1739068280883,-500.0,0.00011095,2]
[352380793,1739068280894,-540.53,0.00011095,2]
[352380794,1739068280904,-500.0,0.00011095,2]
[352380795,1739068280915,-726.76,0.00011095,2]
[352380796,1739068280925,-1126.43,0.00011095,2]
[352380797,1739068280937,-500.0,0.00011095,2]
[352380798,1739068280947,-500.0,0.00011095,2]
[352380799,1739068280958,-150.61,0.00011095,2]
[352380800,1739068280968,-500.0,0.00011095,2]
[352380801,1739068280979,-643.28,0.00011095,2]
[352380802,1739068280990,-300.0,0.00011098,2]
[352380803,1739068281002,-300.0,0.00011098,2]
[352380804,1739068281013,-300.0,0.00011098,2]
[352380805,1739068281022,-300.0,0.00011098,2]
[352380806,1739068281031,-300.0,0.00011098,2]
[352380807,1739068281041,-300.0,0.00011098,2]
[352380808,1739068281050,-644.83,0.00011098,2]
[352380809,1739068281061,-76870.37302377,0.00011099,2]
[352380810,1739068281071,-76870.37302374,0.00011099,2]
[352380811,1739068281082,-76870.37302374,0.00011099,2]
[352380812,1739068281091,-76870.37302374,0.00011099,2]
[352380813,1739068281101,-76870.37302374,0.00011099,2]
[352380814,1739068281111,-76870.37302374,0.00011099,2]
[352380815,1739068281121,-76870.37302374,0.00011099,2]
[352380816,1739068281130,-76870.37302374,0.00011099,2]
[352380817,1739068281141,-76870.37302374,0.00011099,2]
[352380818,1739068281150,-91074.35849166,0.00011099,2]
[352380819,1739068281161,-91074.3584916,0.00011099,2]
[352380820,1739068281173,-91074.3584916,0.00011099,2]
[352380821,1739068281183,-91074.3584916,0.00011099,2]
[352380822,1739068281193,-91074.3584916,0.00011099,2]
[352380823,1739068281203,-91074.3584916,0.00011099,2]
[352380824,1739068281213,-91074.3584916,0.00011099,2]
[352380825,1739068281223,-91074.3584916,0.00011099,2]
[352380826,1739068281233,-91074.3584916,0.00011099,2]
[352380827,1739068281245,-91074.3584916,0.00011099,2]
[352380828,1739068281257,-8009.40911,0.000111,2]
[352380829,1739068281266,-150.0,0.000111,2]
[352380830,1739068281276,-602.05049988,0.00011108,2]
[352380831,1739068281285,-1678.0,0.00011108,2]
[352380832,1739068281295,-426.38955346,0.00011126,2]
[352380833,1739068281304,-300.0,0.00011129,2]
[352380834,1739068281314,-150.0,0.00011133,2]
[352380835,1739068281323,-76870.37302374,0.00011133,2]
[352380836,1739068281333,-1678.0,0.00011135,2]
[352380837,1739068281342,-1678.0,0.00011162,2]
[352380838,1739068281351,-150.0,0.00011173,2]
[352380839,1739068281361,-1678.0,0.0001119,2]
[352380840,1739068281370,-150.0,0.00011191,2]
[352380841,1739068281380,-186.42473,0.00011198,2]
[352380842,1739068281391,-150.0,0.00011215,2]
[352380843,1739068281400,-1678.0,0.00011217,2]
[352380844,1739068281409,-500.0,0.00011222,2]
[352380845,1739068281419,-500.0,0.00011222,2]
[352380846,1739068281432,-500.0,0.00011222,2]
[352380847,1739068281444,-500.0,0.00011222,2]
[352380848,1739068281454,-247.56686875,0.00011222,2]
[352380849,1739068281463,-500.0,0.00011222,2]
[352380850,1739068281472,-500.0,0.00011222,2]
[352380851,1739068281482,-541.35,0.00011222,2]
[352380852,1739068281491,-403.38369486,0.00011222,2]
[352380853,1739068281500,-500.0,0.00011222,2]
[352380854,1739068281510,-500.0,0.00011222,2]
[352380855,1739068281519,-500.0,0.00011222,2]
[352380856,1739068281529,-152.51666097,0.00011222,2]
[352380857,1739068281538,-500.0,0.00011222,2]
[352380858,1739068281548,-500.0,0.00011222,2]
[352380859,1739068281557,-385.26490001,0.00011222,2]
[352380860,1739068281567,-500.0,0.00011222,2]
[352380861,1739068281576,-500.0,0.00011222,2]
[352380862,1739068281585,-500.0,0.00011222,2]
[352380863,1739068281595,-200.5014316,0.00011222,2]
[352380864,1739068281604,-500.0,0.00011222,2]
[352380865,1739068281616,-500.0,0.00011222,2]
[352380866,1739068281626,-500.0,0.00011222,2]
[352380867,1739068281636,-500.0,0.00011222,2]
[352380868,1739068281646,-500.0,0.00011222,2]
[352380869,1739068281655,-500.0,0.00011222,2]
[352380870,1739068281665,-500.0,0.00011222,2]
[352380871,1739068281675,-160.39153285,0.00011222,2]
[352380872,1739068281684,-500.0,0.00011222,2]
[352380873,1739068281693,-423.22356028,0.00011222,2]
[352380874,1739068281703,-500.0,0.00011222,2]
[352380875,1739068281712,-434.34230331,0.00011222,2]
[352380876,1739068281723,-500.0,0.00011222,2]
[352380877,1739068281732,-534.80183975,0.00011222,2]
[352380878,1739068281742,-500.0,0.00011222,2]
[352380879,1739068281752,-500.0,0.00011222,2]
[352380880,1739068281761,-1039.13,0.00011222,2]
[352380881,1739068281770,-500.0,0.00011222,2]
[352380882,1739068281780,-1045.67,0.00011222,2]
[352380883,1739068281790,-500.0,0.00011222,2]
[352380884,1739068281800,-2505.02,0.00011222,2]
[352380885,1739068281812,-500.0,0.00011222,2]
[352380886,1739068281822,-500.0,0.00011222,2]
[352380887,1739068281832,-785.35,0.00011222,2]
[352380888,1739068281842,-500.0,0.00011222,2]
[352380889,1739068281853,-1090.29,0.00011222,2]
[352380890,1739068281865,-500.0,0.00011222,2]
[352380891,1739068281876,-1345.79,0.00011222,2]
[352380892,1739068281886,-644.15987249,0.00011222,2]
[352380893,1739068281895,-1000.0,0.00011222,2]
[352380894,1739068281906,-969.66,0.00011222,2]
[352380895,1739068281916,-500.0,0.00011222,2]
[352380896,1739068281926,-500.0,0.00011222,2]
[352380897,1739068281937,-1750.99,0.00011222,2]
[352380898,1739068281947,-500.0,0.00011222,2]
[352380899,1739068281956,-500.0,0.00011222,2]
[352380900,1739068282120,-1987.42,0.00011222,2]
[352380901,1739068282131,-500.0,0.00011222,2]
[352380902,1739068282141,-337.35547277,0.00011222,2]
[352380903,1739068282152,-500.0,0.00011222,2]
[352380904,1739068282162,-500.0,0.00011222,2]
[352380905,1739068282173,-500.0,0.00011222,2]
[352380906,1739068282185,-500.0,0.00011222,2]
[352380907,1739068282196,-500.0,0.00011222,2]
[352380908,1739068282205,-523.96060255,0.00011222,2]
[352380909,1739068282216,-500.0,0.00011222,2]
[352380910,1739068282226,-500.0,0.00011222,2]
[352380911,1739068282235,-572.40827311,0.00011222,2]
[352380912,1739068282245,-500.0,0.00011222,2]
[352380913,1739068282254,-500.0,0.00011222,2]
[352380914,1739068282263,-500.0,0.00011222,2]
[352380915,1739068282273,-515.1451514,0.00011222,2]
[352380916,1739068282282,-258.30407725,0.00011223,2]
[352380917,1739068282292,-500.0,0.00011223,2]
[352380918,1739068282301,-500.0,0.00011223,2]
[352380919,1739068282310,-336.91025779,0.00011223,2]
[352380920,1739068282320,-687.79,0.00011223,2]
[352380921,1739068282329,-500.0,0.00011223,2]
[352380922,1739068282338,-500.0,0.00011223,2]
[352380923,1739068282347,-500.0,0.00011223,2]
[352380924,1739068282357,-500.0,0.00011223,2]
[352380925,1739068282366,-500.0,0.00011223,2]
[352380926,1739068282375,-500.0,0.00011223,2]
[352380927,1739068282384,-940.52,0.00011223,2]
[352380928,1739068282393,-500.0,0.00011223,2]
[352380929,1739068282403,-500.0,0.00011223,2]
[352380930,1739068282412,-500.0,0.00011223,2]
[352380931,1739068282422,-572.54,0.00011223,2]
[352380932,1739068282432,-500.0,0.00011223,2]
[352380933,1739068282441,-713.14,0.00011223,2]
[352380934,1739068282451,-789.17,0.00011223,2]
[352380935,1739068282460,-349.58607646,0.00011223,2]
[352380936,1739068282470,-500.0,0.00011223,2]
[352380937,1739068282480,-500.0,0.00011223,2]
[352380938,1739068282491,-500.0,0.00011223,2]
[352380939,1739068282503,-604.29,0.00011223,2]
[352380940,1739068282512,-500.0,0.00011223,2]
[352380941,1739068282521,-500.0,0.00011223,2]
[352380942,1739068282531,-500.0,0.00011223,2]
[352380943,1739068282540,-796.85,0.00011223,2]
[352380944,1739068282550,-500.0,0.00011223,2]
[352380945,1739068282560,-704.0,0.00011223,2]
[352380946,1739068282571,-500.0,0.00011223,2]
[352380947,1739068282580,-500.0,0.00011223,2]
[352380948,1739068282591,-565.00016777,0.00011223,2]
[352380949,1739068282602,-855.137713,0.00011223,2]
[352380950,1739068282613,-878.2,0.00011223,2]
[352380951,1739068282623,-965.48681,0.00011223,2]
[352380952,1739068282633,-500.0,0.00011223,2]
[352380953,1739068282643,-500.0,0.00011223,2]
[352380954,1739068282654,-234.2359904,0.00011223,2]
[352380955,1739068282664,-500.0,0.00011223,2]
[352380956,1739068282674,-500.0,0.00011223,2]
[352380957,1739068282684,-500.0,0.00011223,2]
[352380958,1739068282693,-500.0,0.00011223,2]
[352380959,1739068282703,-500.0,0.00011223,2]
[352380960,1739068282713,-307.44586072,0.00011223,2]
[352380961,1739068282723,-502.45,0.00011223,2]
[352380962,1739068282734,-500.0,0.00011223,2]
[352380963,1739068282745,-906.91,0.00011223,2]
[352380964,1739068282754,-500.0,0.00011223,2]
[352380965,1739068282764,-520.73,0.00011223,2]
[352380966,1739068282774,-500.0,0.00011223,2]
[352380967,1739068282783,-862.92,0.00011223,2]
[352380968,1739068282794,-850.75,0.00011223,2]
[352380969,1739068282803,-500.0,0.00011223,2]
[352380970,1739068282813,-500.0,0.00011223,2]
[352380971,1739068282823,-632.29,0.00011223,2]
[352380972,1739068282833,-867.75,0.00011223,2]
[352380973,1739068282843,-500.0,0.00011223,2]
[352380974,1739068282853,-500.0,0.00011223,2]
[352380975,1739068282864,-657.74,0.00011223,2]
[352380976,1739068282874,-950.5,0.00011223,2]
[352380977,1739068282884,-475.85793256,0.00011223,2]
[352380978,1739068282893,-796.41,0.00011223,2]
[352380979,1739068282903,-500.0,0.00011223,2]
[352380980,1739068282912,-500.0,0.00011223,2]
[352380981,1739068282922,-599.71183118,0.00011223,2]
[352380982,1739068282932,-500.0,0.00011223,2]
[352380983,1739068282942,-789.95,0.00011223,2]
[352380984,1739068282952,-500.0,0.00011223,2]
[352380985,1739068282962,-500.0,0.00011223,2]
[352380986,1739068282972,-500.0,0.00011223,2]
[352380987,1739068282983,-609.9327554,0.00011223,2]
[352380988,1739068282992,-770.81,0.00011223,2]
[352380989,1739068283002,-796.4,0.00011223,2]
[352380990,1739068283012,-594.33,0.00011223,2]
[352380991,1739068283023,-1895.12,0.00011223,2]
[352380992,1739068283033,-525.89,0.00011223,2]
[352380993,1739068283044,-2888.1,0.00011223,2]
[352380994,1739068283054,-1057.6,0.00011223,2]
[352380995,1739068283065,-1387.64,0.00011223,2]
[352380996,1739068283074,-500.0,0.00011223,2]
[352380997,1739068283084,-514.0,0.00011223,2]
[352380998,1739068283094,-1501.18,0.00011223,2]
[352380999,1739068283103,-1053.58,0.00011223,2]
[352381000,1739068283114,-514.54,0.00011223,2]
[352381001,1739068283123,-768.56,0.00011223,2]
[352381002,1739068283133,-535.07,0.00011223,2]
[352381003,1739068283142,-680.69,0.00011223,2]
[352381004,1739068283152,-1231.64,0.00011223,2]
[352381005,1739068283162,-2192.35,0.00011223,2]
[352381006,1739068283172,-586.73,0.00011223,2]
[352381007,1739068283181,-500.0,0.00011223,2]
[352381008,1739068283192,-1046.17,0.00011223,2]
[352381009,1739068283202,-500.0,0.00011223,2]
[352381010,1739068283219,-1813.69,0.00011223,2]
[352381011,1739068283228,-1640.37,0.00011223,2]
[352381012,1739068283239,-669.76,0.00011223,2]
[352381013,1739068283250,-500.0,0.00011223,2]
[352381014,1739068283260,-912.52,0.00011223,2]
[352381015,1739068283270,-1735.55,0.00011223,2]
[352381016,1739068283280,-500.0,0.00011223,2]
[352381017,1739068283290,-500.0,0.00011223,2]
[352381018,1739068283299,-1516.41,0.00011223,2]
[352381019,1739068283308,-1011.36,0.00011223,2]
[352381020,1739068283317,-500.0,0.00011223,2]
[352381021,1739068283327,-1292.34,0.00011223,2]
[352381022,1739068283336,-500.0,0.00011223,2]
[352381023,1739068283345,-1086.04,0.00011223,2]
[352381024,1739068283355,-500.0,0.00011223,2]
[352381025,1739068283366,-788.32,0.00011223,2]
[352381026,1739068283376,-1813.88,0.00011223,2]
[352381027,1739068283386,-2183.54,0.00011223,2]
[352381028,1739068283396,-798.61,0.00011223,2]
[352381029,1739068283405,-1408.01,0.00011223,2]
[352381030,1739068283415,-678.49,0.00011223,2]
[352381031,1739068283424,-1409.7,0.00011223,2]
[352381032,1739068283433,-967.29,0.00011223,2]
[352381033,1739068283443,-500.0,0.00011223,2]
[352381034,1739068283453,-645.64,0.00011223,2]
[352381035,1739068283463,-695.06,0.00011223,2]
[352381036,1739068283472,-951.2,0.00011223,2]
[352381037,1739068283482,-1002.71,0.00011223,2]
[352381038,1739068283491,-1894.78,0.00011223,2]
[352381039,1739068283501,-2146.73,0.00011223,2]
[352381040,1739068283511,-1508.57,0.00011223,2]
[352381041,1739068283521,-3646.49,0.00011223,2]
[352381042,1739068283530,-735.05,0.00011223,2]
[352381043,1739068283541,-2412.9,0.00011223,2]
[352381044,1739068283551,-500.0,0.00011223,2]
[352381045,1739068283561,-749.05,0.00011223,2]
[352381046,1739068283571,-1730.37,0.00011223,2]
[352381047,1739068283581,-984.54,0.00011223,2]
[352381048,1739068283591,-500.0,0.00011223,2]
[352381049,1739068283601,-2918.7,0.00011223,2]
[352381050,1739068283611,-500.0,0.00011223,2]
[352381051,1739068283620,-988.0,0.00011223,2]
[352381052,1739068283630,-967.87,0.00011223,2]
[352381053,1739068283640,-500.0,0.00011223,2]
[352381054,1739068283650,-500.0,0.00011223,2]
[352381055,1739068283661,-509.19,0.00011223,2]
[352381056,1739068283671,-500.0,0.00011223,2]
[352381057,1739068283680,-638.52,0.00011223,2]
[352381058,1739068283690,-1138.87,0.00011223,2]
[352381059,1739068283700,-570.46,0.00011223,2]
[352381060,1739068283710,-1633.4,0.00011223,2]
[352381061,1739068283719,-803.83,0.00011223,2]
[352381062,1739068283730,-500.0,0.00011223,2]
[352381063,1739068283740,-500.0,0.00011223,2]
[352381064,1739068283749,-1288.74,0.00011223,2]
[352381065,1739068283759,-1711.72,0.00011223,2]
[352381066,1739068283770,-1257.42,0.00011223,2]
[352381067,1739068283780,-1369.94,0.00011223,2]
[352381068,1739068283790,-633.01,0.00011223,2]
[352381069,1739068283799,-1214.08,0.00011223,2]
[352381070,1739068283809,-630.24,0.00011223,2]
[352381071,1739068283818,-548.7,0.00011223,2]
[352381072,1739068283828,-1405.68,0.00011223,2]
[352381073,1739068283837,-500.0,0.00011223,2]
[352381074,1739068283847,-1452.51,0.00011223,2]
[352381075,1739068283860,-1705.78,0.00011223,2]
[352381076,1739068283869,-500.0,0.00011223,2]
[352381077,1739068283879,-621.33,0.00011223,2]
[352381078,1739068283889,-1951.52,0.00011223,2]
[352381079,1739068283899,-603.4,0.00011223,2]
[352381080,1739068283909,-479.77844411,0.00011223,2]
[352381081,1739068283919,-2275.81,0.00011223,2]
[352381082,1739068283929,-1151.28,0.00011223,2]
[352381083,1739068283938,-205.27658525,0.00011223,2]
[352381084,1739068283949,-5115.12,0.00011223,2]
[352381085,1739068283959,-505.14,0.00011223,2]
[352381086,1739068283968,-534.26120003,0.00011224,2]
[352381087,1739068283978,-500.0,0.00011224,2]
[352381088,1739068283987,-500.0,0.00011224,2]
[352381089,1739068283997,-490.0,0.00011224,2]
[352381090,1739068284006,-500.0,0.00011224,2]
[352381091,1739068284016,-500.0,0.00011224,2]
[352381092,1739068284026,-500.0,0.00011224,2]
[352381093,1739068284036,-500.0,0.00011224,2]
[352381094,1739068284045,-500.0,0.00011224,2]
[352381095,1739068284056,-150.0,0.00011232,2]
[352381096,1739068284067,-785.18,0.00011232,2]
[352381097,1739068284078,-644.68,0.00011232,2]
[352381098,1739068284088,-646.35,0.00011232,2]
[352381099,1739068284098,-500.0,0.00011232,2]
[352381100,1739068284108,-1506.13,0.00011232,2]
[352381101,1739068284118,-1265.04,0.00011232,2]
[352381102,1739068284128,-1598.62,0.00011232,2]
[352381103,1739068284138,-1741.99,0.00011232,2]
[352381104,1739068284148,-500.0,0.00011232,2]
[352381105,1739068284158,-1264.68,0.00011232,2]
[352381106,1739068284168,-1332.83,0.00011232,2]
[352381107,1739068284179,-1408.8,0.00011232,2]
[352381108,1739068284189,-2329.97,0.00011232,2]
[352381109,1739068284199,-1536.78,0.00011232,2]
[352381110,1739068284210,-704.79,0.00011232,2]
[352381111,1739068284219,-2199.8,0.00011232,2]
[352381112,1739068284229,-846.8,0.00011232,2]
[352381113,1739068284238,-500.0,0.00011232,2]
[352381114,1739068284248,-500.0,0.00011232,2]
[352381115,1739068284257,-540.53,0.00011232,2]
[352381116,1739068284267,-500.0,0.00011232,2]
[352381117,1739068284277,-726.76,0.00011232,2]
[352381118,1739068284287,-1126.43,0.00011232,2]
[352381119,1739068284296,-500.0,0.00011232,2]
[352381120,1739068284306,-500.0,0.00011232,2]
[352381121,1739068284315,-500.0,0.00011232,2]
[352381122,1739068284325,-643.28,0.00011232,2]
[352381123,1739068284335,-304.94371259,0.00011232,2]